fUSD/lending_fUSD_20250620
["ID","MTS","AMOUNT","RATE_DAILY","PERIOD"]
[366723859,1750419043758,-476.59485294,0.00025438,5]
[366723860,1750419043923,-354.91892458,0.00025438,5]
[366723861,1750419043979,-410.30174383,0.00025438,5]
[366724043,1750419046003,-1998.90890083,0.00025438,5]
[366724045,1750419046015,-21243.402,0.00025438,5]
[366724056,1750419046111,-824.17429177,0.00025438,5]
[366724063,1750419046170,-422.18801332,0.00025438,5]
[366724075,1750419046272,-7925.22492716,0.00025438,5]
[366724602,1750419053619,34.19168532,0.000259,14]
[366724611,1750419085454,700.0,0.000258,9]
[366724615,1750419104176,46018.05357001,0.000258,14]
[366724616,1750419112613,1528.0,0.000256,7]
[366724617,1750419113610,1048.0,0.000256,7]
[366724623,1750419133497,-2632.0,0.000258,14]
[366724646,1750419353325,500.0,0.00023201,2]
[366724647,1750419361126,500.0,0.00023201,2]
[366724649,1750419367390,165.92,0.00019624,2]
[366724650,1750419370471,4847.0,0.000256,7]
[366724651,1750419371992,206.0,0.00023163,2]
[366724656,1750419453409,0.308304,0.0002547,7]
[366724657,1750419481008,-811349.94642999,0.000258,14]
[366724658,1750419481033,-0.05357001,0.000259,14]
[366724659,1750419506686,-659.75474467,0.000259,14]
[366724660,1750419506712,-862.0,0.000259,14]
[366724661,1750419506735,-1110.0,0.000259,14]
[366724662,1750419510088,0.24005618,0.000251,12]
[366724663,1750419510118,384.52497385,0.000251,12]
[366724664,1750419510563,384.76502989,0.00025866,14]
[366724665,1750419510808,0.48022544,0.00026348,14]
[366724673,1750419620045,-384.76502989,0.00025383,13]
[366724676,1750419674514,346.27251957,0.000251,12]
[366724677,1750419674755,0.23497011,0.00025383,13]
[366724678,1750419713708,-151.0,0.00023275,2]
[366724682,1750419755475,2158.139006,0.0002314,2]
[366724687,1750419838971,82.20250658,0.000251,12]
[366724688,1750419865815,151.0,0.00023201,2]
[366724689,1750419882538,151.0,0.00023195,2]
[366724690,1750419899534,151.0,0.00023191,2]
[366724692,1750419916394,151.0,0.00023186,2]
[366724693,1750419918935,-252.51976316,0.000251,12]
[366724696,1750419936754,158.47,0.00013699,2]
[366724697,1750419937451,151.0,0.0002318,2]
[366724698,1750419941639,-334.72226973,0.00025383,13]
[366724702,1750419982607,-170.76,0.00027397,80]
[366724703,1750420004541,0.48023684,0.000251,12]
[366724704,1750420004973,0.27773027,0.00025383,13]
[366724705,1750420036026,-311.92721514,0.000251,12]
[366724706,1750420052954,-312.0,0.00025383,13]
[366724707,1750420091678,206.0,0.00022698,2]
[366724712,1750420167491,0.07278486,0.000251,12]
[366724713,1750420170833,-182.10737022,0.0002335,2]
[366724714,1750420170854,-2333.33333,0.0002345,2]
[366724715,1750420170875,-533.82414,0.0002345,2]
[366724716,1750420170896,-2333.33333,0.0002347,2]
[366724717,1750420170919,-300.0,0.00023478,2]
[366724718,1750420170954,-300.0,0.00023479,2]
[366724719,1750420170977,-300.0,0.00023479,2]
[366724720,1750420170999,-2333.33334,0.0002348,2]
[366724721,1750420171020,-533.82415,0.0002349,2]
[366724722,1750420171041,-850.24433978,0.000235,2]
[366724723,1750420173192,-1483.08899022,0.000235,2]
[366724724,1750420173216,-2333.33333,0.0002352,2]
[366724725,1750420173246,-2333.33334,0.0002352,2]
[366724726,1750420173268,-533.82414,0.0002352,2]
[366724727,1750420173293,-533.82414,0.0002352,2]
[366724728,1750420173316,-533.82415,0.0002355,2]
[366724729,1750420173339,-533.82414,0.0002358,2]
[366724730,1750420173361,-329.55,0.00023717,2]
[366724731,1750420173383,-906.68,0.00023728,2]
[366724732,1750420173408,-175.23,0.00023738,2]
[366724733,1750420173430,-175.18,0.00023812,2]
[366724734,1750420173455,-128.30776978,0.00023849,2]
[366724735,1750420174710,-71.69223022,0.00023849,2]
[366724736,1750420174734,-1200.0,0.0002388,2]
[366724737,1750420174754,-300.0,0.0002388,2]
[366724738,1750420174776,-8428.30776978,0.00023881,2]
[366724739,1750420177672,-10000.0,0.00023881,2]
[366724740,1750420178313,-5471.69223022,0.00023881,2]
[366724741,1750420178336,-175.18,0.00023931,2]
[366724742,1750420178361,-206.0,0.00024319,4]
[366724743,1750420178384,-4147.12776978,0.00024354,2]
[366724744,1750420178878,-4484.78223022,0.00024354,2]
[366724745,1750420178901,-1000.0,0.00024383,2]
[366724746,1750420178922,-1637.2,0.00024418,2]
[366724747,1750420178944,-200.0,0.00024418,2]
[366724748,1750420178966,-166.87,0.00024527,2]
[366724749,1750420178988,-250.0,0.00024531,2]
[366724750,1750420179010,-150.0,0.00024549,2]
[366724751,1750420179031,-666.0,0.00024566,2]
[366724752,1750420179053,-670.8,0.00024648,2]
[366724753,1750420179074,-774.34776978,0.00024657,3]
[366724754,1750420180428,-1837.55223022,0.00024657,3]
[366724755,1750420180452,-600.0,0.000249,9]
[366724756,1750420180473,-372.77773783,0.00024945,2]
[366724757,1750420180500,-291.51182776,0.000251,12]
[366724758,1750420180522,-769.33258133,0.00025357,2]
[366724759,1750420180546,-163.53361849,0.00025357,2]
[366724760,1750420180568,-163.02255271,0.00025366,2]
[366724761,1750420180589,-693.82121364,0.00025367,2]
[366724762,1750420180616,-291.58461233,0.00025383,13]
[366724763,1750420180636,-155.183,0.00025455,2]
[366724764,1750420180658,-490.0,0.00025456,4]
[366724765,1750420180679,-214.57432833,0.00025456,4]
[366724766,1750420180700,-490.0,0.00025456,4]
[366724767,1750420180877,-490.0,0.00025456,4]
[366724768,1750420180899,-507.6690533,0.00025456,4]
[366724769,1750420180921,-490.0,0.00025456,4]
[366724770,1750420180942,-490.0,0.00025456,4]
[366724771,1750420180964,-490.0,0.00025456,4]
[366724772,1750420180985,-490.0,0.00025456,4]
[366724773,1750420181006,-490.0,0.00025456,4]
[366724774,1750420181027,-19.43724406,0.00025456,4]
[366724775,1750420182752,-470.56275594,0.00025456,4]
[366724776,1750420182775,-490.0,0.00025456,4]
[366724777,1750420182797,-463.5965866,0.00025456,4]
[366724778,1750420182818,-490.0,0.00025456,4]
[366724779,1750420182840,-485.02139008,0.00025456,4]
[366724780,1750420182863,-490.0,0.00025456,4]
[366724781,1750420182885,-490.0,0.00025456,4]
[366724782,1750420182907,-490.0,0.00025456,4]
[366724783,1750420182928,-490.0,0.00025456,4]
[366724784,1750420182949,-490.0,0.00025456,4]
[366724785,1750420182971,-490.0,0.00025456,4]
[366724786,1750420182992,-323.50460033,0.00025456,4]
[366724787,1750420183013,-459.81370372,0.00025456,4]
[366724788,1750420183033,-490.0,0.00025456,4]
[366724789,1750420183055,-426.60410823,0.00025456,4]
[366724790,1750420183076,-490.0,0.00025456,4]
[366724791,1750420183098,-490.0,0.00025456,4]
[366724792,1750420183119,-490.0,0.00025456,4]
[366724793,1750420183140,-490.0,0.00025456,4]
[366724794,1750420183161,-490.0,0.00025456,4]
[366724795,1750420183183,-490.0,0.00025456,4]
[366724796,1750420183204,-20.8968551,0.00025456,4]
[366724797,1750420189438,-469.1031449,0.00025456,4]
[366724798,1750420189458,-490.0,0.00025456,4]
[366724799,1750420189479,-490.0,0.00025456,4]
[366724800,1750420189499,-490.0,0.00025456,4]
[366724801,1750420189521,-490.0,0.00025456,4]
[366724802,1750420189541,-490.0,0.00025456,4]
[366724803,1750420189561,-490.0,0.00025456,4]
[366724804,1750420189582,-490.0,0.00025456,4]
[366724805,1750420189603,-490.0,0.00025456,4]
[366724806,1750420189624,-416.69031958,0.00025456,4]
[366724807,1750420189645,-556.18,0.00025457,2]
[366724808,1750420189671,-4638.02653552,0.00025457,2]
[366724809,1750420212812,202.0,0.00022698,2]
[366724817,1750420232324,-156.78837956,0.00025367,2]
[366724818,1750420232335,-1296.21162044,0.00025448,5]
[366724819,1750420232355,-2300.0,0.00025448,5]
[366724820,1750420232371,-49959.9999996,0.00025448,5]
[366724821,1750420232383,-299.77823045,0.00025448,5]
[366724822,1750420232396,-1045.3,0.00025448,5]
[366724823,1750420232420,-329.75,0.00025448,5]
[366724824,1750420232432,-53859.63254116,0.00025448,5]
[366724825,1750420232445,-27152.28008427,0.00025448,5]
[366725013,1750420238001,-537.89117588,0.00025447,2]
[366725014,1750420238012,-52.84643372,0.00025448,5]
[366725015,1750420238052,-380.559999,0.00025448,5]
[366725016,1750420238210,-6535.72417078,0.00025448,5]
[366725017,1750420238367,-2018.72589992,0.00025448,5]
[366725280,1750420241048,-5641.4720526,0.00025448,5]
[366725287,1750420241104,-1682380.42487116,0.00025448,5]
[366725289,1750420241114,-651.83795298,0.00025455,2]
[366725291,1750420241124,-490.0,0.00025456,4]
[366725293,1750420241134,-490.0,0.00025456,4]
[366725295,1750420241144,-1200.0,0.00025456,2]
[366725297,1750420241154,-490.0,0.00025456,4]
[366725299,1750420241164,-490.0,0.00025456,2]
[366725302,1750420241180,-490.0,0.00025456,4]
[366725304,1750420241190,-490.0,0.00025456,4]
[366725306,1750420241200,-490.0,0.00025456,4]
[366725308,1750420241210,-703.44,0.00025456,4]
[366725310,1750420241221,-500.0,0.00025456,2]
[366725312,1750420241231,-490.0,0.00025456,4]
[366725314,1750420241240,-442.67794592,0.00025456,2]
[366725316,1750420241251,-490.0,0.00025456,4]
[366725318,1750420241261,-490.0,0.00025456,4]
[366725321,1750420241271,-490.0,0.00025456,4]
[366725323,1750420241281,-490.0,0.00025456,4]
[366725325,1750420241292,-490.0,0.00025456,4]
[366725327,1750420241301,-490.0,0.00025456,4]
[366725329,1750420241312,-926.24,0.00025456,4]
[366725331,1750420241322,-490.0,0.00025456,4]
[366725333,1750420241332,-490.0,0.00025456,4]
[366725335,1750420241342,-490.0,0.00025456,4]
[366725337,1750420241353,-202440.83611548,0.00025457,2]
[366725339,1750420241364,-12730.6746989,0.00025457,2]
[366725349,1750420241453,-329.07,0.00025457,2]
[366725351,1750420241463,-490.0,0.00025466,4]
[366725353,1750420241473,-490.0,0.00025466,4]
[366725355,1750420241482,-490.0,0.00025466,4]
[366725357,1750420241492,-236.57237449,0.00025466,4]
[366725360,1750420241502,-490.0,0.00025466,4]
[366725362,1750420241512,-490.0,0.00025466,4]
[366725364,1750420241521,-490.0,0.00025466,4]
[366725366,1750420241531,-490.0,0.00025466,4]
[366725368,1750420241540,-490.0,0.00025466,4]
[366725370,1750420241549,-490.0,0.00025466,4]
[366725371,1750420241559,-490.0,0.00025466,4]
[366725373,1750420241569,-490.0,0.00025466,4]
[366725375,1750420241578,-490.0,0.00025466,4]
[366725378,1750420241588,-490.0,0.00025466,4]
[366725380,1750420241603,-490.0,0.00025466,4]
[366725382,1750420241612,-490.0,0.00025466,4]
[366725384,1750420241622,-490.0,0.00025466,4]
[366725386,1750420241632,-490.0,0.00025466,4]
[366725388,1750420241641,-490.0,0.00025466,4]
[366725390,1750420241651,-490.0,0.00025466,4]
[366725392,1750420241661,-490.0,0.00025466,4]
[366725394,1750420241670,-490.0,0.00025466,4]
[366725396,1750420241680,-490.0,0.00025466,4]
[366725398,1750420241690,-490.0,0.00025466,4]
[366725400,1750420241699,-490.0,0.00025466,4]
[366725403,1750420241709,-490.0,0.00025466,4]
[366725405,1750420241718,-490.0,0.00025466,4]
[366725407,1750420241728,-490.0,0.00025466,4]
[366725409,1750420241738,-490.0,0.00025466,4]
[366725411,1750420241748,-490.0,0.00025466,4]
[366725413,1750420241757,-490.0,0.00025466,4]
[366725415,1750420241767,-490.0,0.00025466,4]
[366725417,1750420241777,-490.0,0.00025466,4]
[366725419,1750420241786,-604.97,0.00025466,4]
[366725421,1750420241796,-490.0,0.00025466,4]
[366725423,1750420241805,-748.23,0.00025466,4]
[366725425,1750420241815,-513.93,0.00025466,4]
[366725427,1750420241825,-1193.95,0.00025466,4]
[366725429,1750420241834,-794.676137,0.00025466,4]
[366725431,1750420241843,-490.0,0.00025466,4]
[366725433,1750420241853,-779.34,0.00025466,4]
[366725435,1750420241863,-490.0,0.00025466,4]
[366725437,1750420241873,-1637.707546,0.00025466,4]
[366725439,1750420241882,-490.0,0.00025466,4]
[366725441,1750420241892,-159.469271,0.00025466,4]
[366725443,1750420241901,-490.0,0.00025466,4]
[366725445,1750420241911,-152.346402,0.00025466,4]
[366725447,1750420241920,-490.0,0.00025466,4]
[366725449,1750420241929,-490.0,0.00025466,4]
[366725451,1750420241939,-490.0,0.00025466,4]
[366725453,1750420241948,-490.0,0.00025467,4]
[366725455,1750420241958,-490.0,0.00025467,4]
[366725457,1750420241968,-326.92171903,0.00025467,4]
[366725459,1750420241978,-196.11,0.00025467,4]
[366725461,1750420241987,-490.0,0.00025467,4]
[366725463,1750420241997,-490.0,0.00025467,4]
[366725465,1750420242007,-490.0,0.00025467,4]
[366725468,1750420242018,-490.0,0.00025467,4]
[366725470,1750420242029,-490.0,0.00025467,4]
[366725472,1750420242044,-490.0,0.00025467,4]
[366725474,1750420242054,-490.0,0.00025467,4]
[366725476,1750420242063,-227.75346373,0.00025467,4]
[366725479,1750420242074,-490.0,0.00025467,4]
[366725481,1750420242084,-490.0,0.00025467,4]
[366725483,1750420242094,-490.0,0.00025467,4]
[366725485,1750420242104,-490.0,0.00025467,4]
[366725487,1750420242113,-490.0,0.00025467,4]
[366725489,1750420242123,-490.0,0.00025467,4]
[366725491,1750420242132,-490.0,0.00025467,4]
[366725493,1750420242142,-490.0,0.00025467,4]
[366725495,1750420242153,-490.0,0.00025467,4]
[366725496,1750420242162,-490.0,0.00025467,4]
[366725498,1750420242172,-490.0,0.00025467,4]
[366725501,1750420242182,-490.0,0.00025467,4]
[366725503,1750420242196,-490.0,0.00025467,4]
[366725505,1750420242206,-490.0,0.00025467,4]
[366725507,1750420242216,-490.0,0.00025467,4]
[366725509,1750420242225,-490.0,0.00025467,4]
[366725511,1750420242235,-490.0,0.00025467,4]
[366725513,1750420242245,-490.67925484,0.00025467,4]
[366725515,1750420242254,-490.0,0.00025467,4]
[366725517,1750420242265,-490.0,0.00025467,4]
[366725519,1750420242275,-490.0,0.00025467,4]
[366725521,1750420242285,-490.0,0.00025467,4]
[366725523,1750420242295,-490.0,0.00025467,4]
[366725525,1750420242304,-490.0,0.00025467,4]
[366725527,1750420242314,-490.0,0.00025467,4]
[366725529,1750420242323,-490.0,0.00025467,4]
[366725531,1750420242333,-490.0,0.00025467,4]
[366725533,1750420242343,-490.0,0.00025467,4]
[366725535,1750420242353,-490.0,0.00025467,4]
[366725537,1750420242363,-490.0,0.00025467,4]
[366725539,1750420242373,-598.67128723,0.00025467,4]
[366725541,1750420242382,-490.0,0.00025467,4]
[366725543,1750420242392,-490.0,0.00025467,4]
[366725545,1750420242401,-490.0,0.00025467,4]
[366725547,1750420242411,-490.0,0.00025467,4]
[366725549,1750420242421,-490.0,0.00025467,4]
[366725551,1750420242430,-490.0,0.00025467,4]
[366725553,1750420242440,-490.0,0.00025467,4]
[366725555,1750420242450,-490.0,0.00025467,4]
[366725557,1750420242459,-490.0,0.00025467,4]
[366725559,1750420242469,-490.0,0.00025467,4]
[366725561,1750420242480,-304.49,0.00025467,4]
[366725563,1750420242489,-490.0,0.00025467,4]
[366725565,1750420242498,-170.35251075,0.00025467,4]
[366725567,1750420242508,-490.0,0.00025467,4]
[366725569,1750420242517,-490.0,0.00025467,4]
[366725571,1750420242527,-490.0,0.00025467,4]
[366725574,1750420242537,-490.0,0.00025467,4]
[366725576,1750420242546,-490.0,0.00025467,4]
[366725578,1750420242556,-490.0,0.00025467,4]
[366725580,1750420242565,-490.0,0.00025467,4]
[366725582,1750420242575,-490.0,0.00025467,4]
[366725584,1750420242585,-490.0,0.00025467,4]
[366725586,1750420242594,-490.0,0.00025467,4]
[366725588,1750420242604,-490.0,0.00025467,4]
[366725590,1750420242614,-490.0,0.00025467,4]
[366725592,1750420242624,-490.0,0.00025467,4]
[366725594,1750420242634,-490.0,0.00025467,4]
[366725596,1750420242643,-163.989778,0.00025467,4]
[366725598,1750420242652,-490.0,0.00025467,4]
[366725600,1750420242661,-608.94,0.00025467,4]
[366725602,1750420242671,-490.0,0.00025467,4]
[366725604,1750420242680,-490.0,0.00025467,4]
[366725606,1750420242689,-490.0,0.00025467,4]
[366725608,1750420242699,-490.0,0.00025467,4]
[366725610,1750420242708,-156.08470984,0.00025467,4]
[366725612,1750420242717,-578.23,0.00025467,4]
[366725614,1750420242727,-577.97,0.00025467,4]
[366725616,1750420242737,-490.0,0.00025467,4]
[366725618,1750420242746,-490.0,0.00025467,4]
[366725620,1750420242756,-490.0,0.00025467,4]
[366725622,1750420242765,-490.0,0.00025467,4]
[366725624,1750420242775,-490.0,0.00025467,4]
[366725626,1750420242785,-490.0,0.00025467,4]
[366725628,1750420242795,-490.0,0.00025467,4]
[366725630,1750420242804,-490.0,0.00025467,4]
[366725632,1750420242814,-490.0,0.00025467,4]
[366725634,1750420242823,-490.0,0.00025467,4]
[366725636,1750420242833,-490.0,0.00025467,4]
[366725638,1750420242843,-490.0,0.00025467,4]
[366725640,1750420242853,-490.0,0.00025467,4]
[366725642,1750420242862,-490.0,0.00025467,4]
[366725644,1750420242872,-490.0,0.00025467,4]
[366725646,1750420242882,-490.0,0.00025467,4]
[366725648,1750420242892,-490.0,0.00025467,4]
[366725650,1750420242901,-490.0,0.00025467,4]
[366725652,1750420242911,-490.0,0.00025467,4]
[366725654,1750420242921,-490.0,0.00025467,4]
[366725656,1750420242931,-333.86929439,0.00025467,4]
[366725659,1750420242941,-490.0,0.00025467,4]
[366725661,1750420242950,-490.0,0.00025467,4]
[366725663,1750420242959,-490.0,0.00025467,4]
[366725665,1750420242969,-490.0,0.00025467,4]
[366725667,1750420242978,-490.0,0.00025467,4]
[366725669,1750420242988,-490.0,0.00025467,4]
[366725671,1750420242997,-490.0,0.00025467,4]
[366725673,1750420243007,-490.0,0.00025467,4]
[366725675,1750420243017,-490.0,0.00025467,4]
[366725678,1750420243036,-490.0,0.00025467,4]
[366725680,1750420243050,-490.0,0.00025467,4]
[366725682,1750420243059,-490.0,0.00025467,4]
[366725684,1750420243069,-490.0,0.00025467,4]
[366725686,1750420243079,-490.0,0.00025467,4]
[366725688,1750420243089,-490.0,0.00025467,4]
[366725690,1750420243100,-490.0,0.00025467,4]
[366725692,1750420243109,-490.0,0.00025467,4]
[366725694,1750420243119,-490.0,0.00025467,4]
[366725696,1750420243128,-490.0,0.00025467,4]
[366725698,1750420243138,-490.0,0.00025467,4]
[366725700,1750420243147,-490.0,0.00025467,4]
[366725702,1750420243157,-502.76205022,0.00025467,4]
[366725704,1750420243167,-490.0,0.00025467,4]
[366725707,1750420243178,-490.0,0.00025467,4]
[366725709,1750420243187,-490.0,0.00025467,4]
[366725711,1750420243197,-490.0,0.00025467,4]
[366725713,1750420243207,-490.0,0.00025467,4]
[366725715,1750420243218,-490.0,0.00025467,4]
[366725717,1750420243227,-490.0,0.00025467,4]
[366725719,1750420243237,-490.0,0.00025467,4]
[366725721,1750420243247,-490.0,0.00025467,4]
[366725723,1750420243257,-490.0,0.00025467,4]
[366725724,1750420243266,-489.62015759,0.00025467,4]
[366725725,1750420243276,-490.0,0.00025467,4]
[366725726,1750420243286,-490.0,0.00025467,4]
[366725727,1750420243296,-776.78,0.00025467,4]
[366725728,1750420243307,-490.0,0.00025467,4]
[366725729,1750420243316,-301.36,0.00025467,4]
[366725730,1750420243327,-490.0,0.00025467,4]
[366725731,1750420243336,-490.0,0.00025467,4]
[366725732,1750420243346,-490.0,0.00025467,4]
[366725733,1750420243355,-490.0,0.00025467,4]
[366725734,1750420243365,-202.77,0.00025467,4]
[366725735,1750420243374,-490.0,0.00025467,4]
[366725736,1750420243384,-490.0,0.00025467,4]
[366725737,1750420243393,-490.0,0.00025467,4]
[366725738,1750420243403,-490.0,0.00025467,4]
[366725739,1750420243412,-490.0,0.00025467,4]
[366725741,1750420243422,-627.71041074,0.00025467,4]
[366725742,1750420243431,-490.0,0.00025467,4]
[366725744,1750420243441,-490.0,0.00025467,4]
[366725746,1750420243451,-490.0,0.00025467,4]
[366725748,1750420243460,-490.0,0.00025467,4]
[366725751,1750420243470,-490.0,0.00025467,4]
[366725752,1750420243485,-490.0,0.00025467,4]
[366725755,1750420243496,-490.0,0.00025467,4]
[366725757,1750420243507,-490.0,0.00025467,4]
[366725759,1750420243517,-267.1,0.00025467,4]
[366725761,1750420243527,-490.0,0.00025467,4]
[366725763,1750420243536,-490.0,0.00025467,4]
[366725765,1750420243546,-562.41,0.00025467,4]
[366725767,1750420243555,-490.0,0.00025467,4]
[366725769,1750420243565,-490.0,0.00025467,4]
[366725771,1750420243575,-490.0,0.00025467,4]
[366725773,1750420243585,-490.0,0.00025467,4]
[366725775,1750420243595,-490.0,0.00025467,4]
[366725777,1750420243605,-490.0,0.00025467,4]
[366725779,1750420243615,-508.32,0.00025467,4]
[366725781,1750420243624,-490.0,0.00025467,4]
[366725783,1750420243634,-490.0,0.00025467,4]
[366725785,1750420243644,-490.0,0.00025467,4]
[366725787,1750420243654,-542.7,0.00025467,4]
[366725789,1750420243663,-490.0,0.00025467,4]
[366725791,1750420243673,-490.0,0.00025467,4]
[366725793,1750420243683,-490.0,0.00025467,4]
[366725795,1750420243692,-490.0,0.00025467,4]
[366725797,1750420243702,-490.0,0.00025467,4]
[366725799,1750420243711,-490.0,0.00025467,4]
[366725801,1750420243721,-490.0,0.00025467,4]
[366725803,1750420243731,-490.0,0.00025467,4]
[366725805,1750420243741,-694.52,0.00025467,4]
[366725807,1750420243751,-490.0,0.00025467,4]
[366725809,1750420243761,-490.0,0.00025467,4]
[366725811,1750420243771,-490.0,0.00025467,4]
[366725813,1750420243780,-490.0,0.00025467,4]
[366725815,1750420243790,-490.0,0.00025467,4]
[366725817,1750420243800,-490.0,0.00025467,4]
[366725819,1750420243809,-490.0,0.00025467,4]
[366725821,1750420243819,-490.0,0.00025467,4]
[366725823,1750420243829,-490.0,0.00025467,4]
[366725825,1750420243838,-490.0,0.00025467,4]
[366725827,1750420243848,-490.0,0.00025467,4]
[366725829,1750420243858,-490.0,0.00025467,4]
[366725831,1750420243868,-490.0,0.00025467,4]
[366725833,1750420243878,-490.0,0.00025467,4]
[366725835,1750420243888,-490.0,0.00025467,4]
[366725837,1750420243898,-490.0,0.00025467,4]
[366725840,1750420243913,-580.95,0.00025467,4]
[366725842,1750420243923,-504.96,0.00025467,4]
[366725844,1750420243933,-1176.89,0.00025467,4]
[366725846,1750420243943,-490.0,0.00025467,4]
[366725848,1750420243954,-490.0,0.00025467,4]
[366725850,1750420243964,-490.0,0.00025467,4]
[366725853,1750420243974,-490.0,0.00025467,4]
[366725855,1750420243984,-490.0,0.00025467,4]
[366725857,1750420243995,-490.0,0.00025467,4]
[366725859,1750420244006,-490.0,0.00025467,4]
[366725861,1750420244015,-490.0,0.00025467,4]
[366725863,1750420244026,-490.0,0.00025467,4]
[366725865,1750420244037,-490.14,0.00025467,4]
[366725867,1750420244046,-490.0,0.00025467,4]
[366725869,1750420244056,-490.0,0.00025467,4]
[366725871,1750420244066,-490.0,0.00025467,4]
[366725873,1750420244076,-490.0,0.00025467,4]
[366725875,1750420244086,-490.0,0.00025467,4]
[366725878,1750420244097,-490.0,0.00025467,4]
[366725880,1750420244107,-490.0,0.00025467,4]
[366725882,1750420244117,-490.0,0.00025467,4]
[366725884,1750420244127,-490.0,0.00025467,4]
[366725886,1750420244136,-490.0,0.00025467,4]
[366725888,1750420244146,-490.0,0.00025467,4]
[366725890,1750420244157,-490.0,0.00025467,4]
[366725892,1750420244167,-490.0,0.00025467,4]
[366725894,1750420244180,-490.0,0.00025467,4]
[366725896,1750420244192,-490.0,0.00025467,4]
[366725898,1750420244202,-365.46511222,0.00025467,4]
[366725900,1750420244212,-169.37,0.00025467,4]
[366725902,1750420244222,-490.0,0.00025467,4]
[366725904,1750420244232,-553.15,0.00025467,4]
[366725906,1750420244243,-490.0,0.00025467,4]
[366725908,1750420244255,-490.0,0.00025467,4]
[366725910,1750420244264,-490.0,0.00025467,4]
[366725913,1750420244275,-490.0,0.00025467,4]
[366725915,1750420244286,-490.0,0.00025467,4]
[366725917,1750420244296,-490.0,0.00025467,4]
[366725919,1750420244306,-522.64,0.00025467,4]
[366725921,1750420244316,-537.15,0.00025467,4]
[366725923,1750420244326,-490.0,0.00025467,4]
[366725925,1750420244336,-490.0,0.00025467,4]
[366725927,1750420244346,-381.17,0.00025467,4]
[366725929,1750420244355,-564.36,0.00025467,4]
[366725931,1750420244365,-490.0,0.00025467,4]
[366725933,1750420244374,-530.32,0.00025467,4]
[366725935,1750420244384,-490.0,0.00025467,4]
[366725938,1750420244394,-490.0,0.00025467,4]
[366725940,1750420244404,-490.0,0.00025467,4]
[366725942,1750420244414,-490.0,0.00025467,4]
[366725944,1750420244424,-23.57001225,0.00025467,4]
[366726004,1750420244993,203.0,0.00022698,2]
[366726043,1750420245383,-483.85240885,0.00025447,2]
[366726045,1750420245393,-285.81962455,0.00025456,4]
[366726053,1750420245454,-248.00833422,0.00025456,4]
[366726055,1750420245464,-466.42998775,0.00025467,4]
[366726057,1750420245475,-490.0,0.00025467,4]
[366726059,1750420245486,-490.0,0.00025467,4]
[366726061,1750420245496,-490.0,0.00025467,4]
[366726063,1750420245505,-2407.19,0.00025467,4]
[366726065,1750420245515,-490.0,0.00025467,4]
[366726067,1750420245525,-490.0,0.00025467,4]
[366726069,1750420245535,-490.0,0.00025467,4]